{"text_format":"1","workbook":"xlsx","n_sheets":5,"sheets":["1 Försättssida","2 Specifikation","3 Avtalstecknande","Admin","SysAdmin"],"not_rendered":{"charts":0,"images":0,"macros":1,"external_links":1,"defined_names":70,"comments":0,"pivot_tables":0},"unopened":[],"bounds":{"document_bytes":16777216,"sheet_cells":100000,"rows_first":2000,"rows_last":500,"rows_between":2000,"halvings":0,"cell_chars":16384,"cell_head_chars":4096},"cells_cut":0,"cells_raw":0,"read":"whole","date_system":"1900"}

{"sheet":"1 Försättssida","index":0,"n_rows":24,"n_cols":1,"rows_kept":24,"cut":false,"hidden":false,"merged":[]}
[]
[]
[]
[]
[]
[]
[]
[]
[]
[]
[]
["Avropsförfrågan - Förnyad konkurrensutsättning "]
["från Statens inköpscentrals ramavtal inom området "]
["Resebyråtjänster"]
[]
["23.3-07347-2019"]
[]
[]
[]
[]
["Avropsblankett"]
[]
[{"$f":"MID(CELL(\"filename\",A1),FIND(\"[\",CELL(\"filename\",A1))+1,FIND(\"]\",CELL(\"filename\",A1))-FIND(\"[\",CELL(\"filename\",A1))-1)","v":"avropsblankett---resebyratjanster-enkla-mallen-2020-07-08 (1).xlsm"}]
[{"$f":"MID(A23,SEARCH(\"(\",A23)+1,SEARCH(\")\",A23)-SEARCH(\"(\",A23)-1)","v":"1"}]

{"sheet":"2 Specifikation","index":1,"n_rows":149,"n_cols":34,"rows_kept":149,"cut":false,"hidden":false,"merged":[[109,23,137,27],[113,15,113,18],[132,15,132,22],[133,15,133,22],[134,15,134,22],[103,20,103,21],[103,18,103,19],[99,1,99,9],[135,15,135,22],[105,1,105,5],[108,1,108,8],[107,1,107,8],[107,15,107,18],[119,1,119,8],[101,12,101,13],[50,2,50,4],[60,2,60,4],[59,2,59,4],[62,2,62,4],[58,5,58,11],[56,5,56,11],[45,2,45,4],[45,5,45,11],[93,20,93,22],[56,2,56,4],[63,2,63,4],[63,15,63,18],[64,15,64,18],[65,15,65,18],[65,2,65,4],[49,15,49,18],[50,15,50,18],[51,15,51,18],[52,15,52,18],[53,15,53,18],[54,15,54,18],[76,21,76,22],[77,3,77,12],[77,16,77,20],[14,1,14,3],[12,4,12,6],[43,15,43,18],[47,2,47,4],[48,2,48,4],[35,6,35,7],[44,5,44,11],[47,5,47,11],[48,5,48,11],[38,1,38,8],[42,15,42,19],[43,2,43,4],[44,2,44,4],[41,1,41,5],[39,1,39,8],[43,5,43,11],[29,1,29,2],[32,1,32,2],[42,1,42,5],[36,3,36,4],[33,3,33,4],[48,15,48,18],[148,19,148,22],[145,15,146,22],[142,15,142,22],[141,15,141,22],[144,15,144,22],[140,15,140,22],[140,1,140,8],[113,1,113,8],[135,1,135,8],[133,1,133,8],[134,1,134,8],[114,1,114,8],[120,1,129,8],[132,1,132,8],[142,1,144,8],[138,15,139,22],[115,1,115,8],[116,1,116,8],[98,1,98,8],[8,1,8,6],[8,7,8,8],[13,7,13,8],[13,15,13,17],[13,18,13,20],[92,1,92,5],[109,1,109,8],[110,1,110,8],[46,2,46,4],[46,5,46,11],[55,2,55,4],[55,5,55,11],[53,2,53,4],[52,2,52,4],[49,2,49,4],[63,5,63,11],[64,5,64,11],[65,5,65,11],[51,2,51,4],[54,2,54,4],[57,2,57,4],[58,2,58,4],[64,2,64,4],[2,1,2,4],[2,15,2,17],[2,19,2,22],[3,1,4,8],[3,15,4,22],[7,1,7,6],[7,7,7,8],[7,15,7,20],[7,21,7,22],[5,1,5,8],[6,1,6,8],[9,7,9,8],[9,15,9,18],[9,19,9,22],[8,15,8,20],[11,15,11,18],[12,15,12,18],[14,7,14,8],[14,4,14,6],[29,3,29,4],[13,21,13,22],[14,21,14,22],[12,21,12,22],[8,21,8,22],[9,1,9,3],[9,4,9,6],[16,4,16,8],[16,15,16,17],[11,1,11,3],[14,18,14,20],[15,15,15,17],[13,4,13,6],[12,7,12,8],[11,4,11,6],[10,4,10,6],[10,1,10,3],[19,1,23,8],[11,19,11,20],[11,21,11,22],[97,1,97,3],[11,7,11,8],[16,1,16,3],[12,1,12,3],[13,1,13,3],[14,15,14,17],[62,5,62,11],[62,15,62,18],[30,3,30,4],[12,19,12,20],[10,15,10,18],[10,19,10,22],[10,7,10,8],[52,5,52,11],[53,5,53,11],[54,5,54,11],[61,2,61,4],[56,15,56,18],[44,15,44,18],[47,15,47,18],[43,23,43,24],[15,4,15,8],[33,1,33,2],[26,15,26,22],[30,6,30,8],[36,1,36,2],[35,1,35,2],[41,15,41,16],[40,12,41,13],[29,6,29,8],[36,6,36,7],[15,18,15,22],[16,18,16,22],[30,1,30,2],[32,3,32,4],[19,15,23,22],[26,1,26,8],[15,1,15,3],[44,23,44,24],[45,15,45,18],[45,23,45,24],[46,15,46,18],[35,3,35,4],[46,23,46,24],[59,5,59,11],[60,5,60,11],[61,5,61,11],[58,23,58,24],[59,23,59,24],[60,23,60,24],[49,5,49,11],[50,5,50,11],[51,5,51,11],[60,15,60,18],[61,15,61,18],[57,5,57,11],[57,15,57,18],[58,15,58,18],[59,15,59,18],[55,15,55,18],[55,23,55,24],[61,23,61,24],[92,23,92,24],[47,23,47,24],[48,23,48,24],[49,23,49,24],[50,23,50,24],[51,23,51,24],[52,23,52,24],[53,23,53,24],[54,23,54,24],[63,23,63,24],[57,23,57,24],[56,23,56,24],[71,23,71,24],[64,23,64,24],[65,23,65,24],[62,23,62,24],[77,21,77,22],[77,23,77,24],[78,3,78,12],[78,16,78,20],[78,21,78,22],[78,23,78,24],[79,3,79,12],[79,16,79,20],[79,21,79,22],[79,23,79,24],[80,3,80,12],[80,16,80,20],[80,21,80,22],[80,23,80,24],[81,3,81,12],[81,16,81,20],[81,21,81,22],[81,23,81,24],[82,3,82,12],[82,16,82,20],[82,21,82,22],[82,23,82,24],[83,3,83,12],[83,16,83,20],[83,21,83,22],[83,23,83,24],[84,3,84,12],[84,16,84,20],[84,21,84,22],[84,23,84,24],[85,3,85,12],[85,16,85,20],[85,21,85,22],[85,23,85,24],[87,3,87,11],[87,16,87,20],[87,21,87,22],[87,23,87,24],[88,3,88,11],[88,16,88,20],[88,21,88,22],[88,23,88,24],[90,23,90,24],[68,2,68,4],[68,5,68,11],[68,15,68,18],[68,23,68,24],[69,2,69,4],[69,5,69,11],[69,15,69,18],[69,23,69,24],[66,2,66,4],[66,5,66,11],[66,15,66,18],[66,23,66,24],[67,2,67,4],[67,5,67,11],[67,15,67,18],[67,23,67,24]]}
[]
[null,null,null,null,null,null,null,null,null,null,null,null,null,null,{"$f":"\"Avrop nr: \"&E15","v":"Avrop nr: xxxx"},null,null,null,null,null,null,null,{"$f":"\"Avrop nr: \"&M15","v":"Avrop nr: "},null,null,null,null,null,{"$f":"\"Avrop nr: \"&E15","v":"Avrop nr: xxxx"}]
[null,"Avropsförfrågan",null,null,null,null,null,null,null,null,null,null,null,null,null,"Avropssvar",null,null,null,{"$f":"IF(LarmStatus,\"Minst ett av de obligatoriska kraven är inte ifyllda eller besvarde med Nej\",\"\")","v":"Minst ett av de obligatoriska kraven är inte ifyllda eller besvarde med Nej"},null,null,null,null,null,null,null,null,null,null,null,null,null,{"$f":"OR(AH4:AH794)","v":true}]
[null,"Instruktion till avropande organisation: \nSpara ned blanketten på din dator.\nGulmarkerade rutor fylls i av avropare innan blanketten skickas.\n\nBlanketten skickas med e-post till antagna leverantörer inom aktuellt avropsområde.\nSe vidare \"Vägledning vid avrop\".",null,null,null,null,null,null,null,null,null,null,null,null,null,"Instruktion till leverantör:\nBlåmarkerade rutor fylls i av leverantören.\nLäs och kontrollera obligatoriska krav.\nReturnera blanketten med e-post till avropande organisation (oavsett Ja eller Nej)."]
[]
[null,"Steg 1 - Administrativa uppgifter"]
[null,"Uppgifter om avropande organisation",null,null,null,null,null,null,null,null,null,null,null,null,null,"Uppgifter om Ramavtalsleverantören"]
[null,"Myndighet/Organisation (namn)",null,null,null,null,null,"Organisationsnummer",null,null,null,null,null,null,null,"Ramavtalsleverantörens namn",null,null,null,null,null,"Organisationsnummer"]
[null,"Fiktivmyndigheten"]
[null,"Postadress",null,null,"Postnummer",null,null,"Ort",null,null,null,null,null,null,null,"Kontaktperson",null,null,null,"E-Post"]
[null,"Stora gatan 1",null,null,"123 45",null,null,"Staden"]
[null,"Avdelning, enhet etc",null,null,"Fakturaref.",null,null,"Mottagare för E-faktura",null,null,null,null,null,null,null,"Postadress",null,null,null,"Postnummer",null,"Ort"]
[]
[null,"Kontaktperson",null,null,"Referens/diarienr för avropet",null,null,"Ev. kundnummer",null,null,null,null,null,null,null,"Telefon",null,null,"Ramavtalsnummer",null,null,"Offertnummer el likn för detta avropssvar"]
[null,null,null,null,"xxxx",null,null,null,null,null,null,null,null,null,null,null,null,null,"23.3-07347-2019"]
[null,"Telefon",null,null,"Avropssvar skickas till e-post",null,null,null,null,null,null,null,null,null,null,"Avropssvar lämnas Ja/Nej",null,null,"Om Nej, motivering"]
[null,null,null,null,"avrop@fiktivmyndigheten.se",null,null,null,null,null,null,null,null,null,null,null,null,null,null,null,null,null,null,null,null,null,null,null,null,null,null,null,null,{"$f":"IF(AND(P17=0,P17<>\"Ja\"),TRUE,FALSE)","v":true}]
[]
[null,"Förnyad kontroll av leverantörskrav (ESPD)",null,null,null,null,null,null,null,null,null,null,null,null,null,"Leverantörskrav (ESPD) - Ramavtalsleverantörens intygande"]
[null,"Av 15 kap. 1 samt 4 §§ LOU framgår att ramavtalsleverantören ska lämna en ny egenförsäkran samt att en ny kontroll av kvalificeringskrav och uteslutningsgrunder ska genomföras vid avrop genom förnyad konkurrensutsättning. Kammarkollegiet ansvarar för denna kontrollskyldighet genom att löpande genomföra leverantörsprövning under hela ramavtalsperioden. \nKontrollskyldigheten bör också hanteras så att ramavtalsleverantören i sitt avropssvar bekräftar att i ramavtalsupphandlingen lämnad egenförsäkran fortfarande är korrekt, samt att ingivna bevis fortfarande är aktuella. Avropande myndighet kan själv begära in ett eller flera bevis enligt punkten 2 till höger.",null,null,null,null,null,null,null,null,null,null,null,null,null,"Genom att lämna avropssvar, bekräftar ramavtalsleverantören följande:\n1.\tAtt i ramavtalsupphandlingen lämnad egenförsäkran fortfarande är korrekt.\n2.\tAtt i ramavtalsupphandlingen ingivna bevis, såsom Sanningsförsäkran avseende uteslutningsgrunder (gällande leverantören och ev. åberopade företag) fortfarande aktuella.\n3.\tAtt ramavtalsleverantören har säkerställt att ev. åberopade företag inte omfattas av någon uteslutningsgrund.\nMed \"åberopat företag\" avses specifikt en underleverantör som har åberopats i ramavtalsupphandlingen för att uppfylla krav på ekonomisk, teknisk och yrkesmässig kapacitet”."]
[]
[]
[]
[]
[]
[null,"Information om avropet t ex syfte och omfattning",null,null,null,null,null,null,null,null,null,null,null,null,null,"Uppgifter om underleverantör/återförsäljare som används för utförande av resebyråtjänster (om aktuellt)."]
[null,"Fiktivmyndigheten har 100 anställda och 30 medarbetare reser i tjänsten både inrikes och utrikes. Resebyråuppdraget avser såväl individuella resor som gruppresor, bokning av transportmedel, hotell och hyrbil. Myndigheten arbetar för att öka medarbetarnas användning av självbokningssystem. Fiktivmyndighetens resepolicy ska följas och Kammarkollegiets upphandlade ramavtal inom områdena resor och boende ska användas. Hänvisar för övrigt till upphandlade tjänster, krav och villkor i ramavtalet för Resebyråtjänster. "]
[]
[null,null,"Obs att tidsfristen måste vara skälig med hänsyn till avropets karaktär."]
[null,"Sista datum för frågor",null,"Sista datum för \nsvar på frågor",null,null,"E-post för frågor (om annan än ovan)"]
[null,"2020-10-10",null,"2020-10-12"]
[]
[null,"Sista dag för avropssvar",null,"Avropssvarets giltighetstid"]
[null,"2020-10-14",null,"2021-04-30"]
[]
[null,"Kontraktets längd: antal månader",null,"Förlägningsoption:\nAntal månader",null,null,"Planerat startdatum för kontraktet"]
[null,24,null,24,null,null,"2021-02-15"]
[]
[null,"Ange vilket delområde avropet avser "]
[null,"Delområde 1"]
[]
[null,"Steg 2 - Specifikation av tjänster",null,null,null,null,null,null,null,null,null,null,null,null,null,"Leverantörens svar"]
[]
[null,"Tjänst nr","Tjänster\n",null,null,"Övrig information som kan vara relelevant för avropet (om sådan finns). Till exempel hänvisning till bilaga, ange bilagenumret i så fall.\nFörväntat antal transaktioner matas in till höger (ej i bilaga).\nPris kan begäras per timme eller med fast pris.",null,null,null,null,null,null,"Personlig service (Antal transaktioner)","Självbokning (Antal transaktioner)",null,"Övrig information till avropande myndighet som kan vara relelevant för avropet (om sådan finns). Till exempel hänvisning till bilaga, ange bilagenumret i så fall.\nArvode per transaktion, dokument eller biljettnummer.",null,null,null,"Personlig service (Bokningsarvode)","Totalt personlig service","Självbokning (Bokningsarvode)","Självbokning (Totalt självbokning)","Pris totalt"]
[null,1,"Flyg - Inrikes",null,null,null,null,null,null,null,null,null,100,50,null,null,null,null,null,null,{"$f":"M45*T45","v":0},null,{"$f":"N45*V45","v":0},{"$f":"U45+W45","v":0},null,null,null,null,false]
[null,2,"Flyg - Norden",null,null,null,null,null,null,null,null,null,20,15,null,null,null,null,null,null,{"$f":"M46*T46","v":0},null,{"$f":"N46*V46","v":0},{"$f":"U46+W46","v":0}]
[null,3,"Flyg - Europa",null,null,null,null,null,null,null,null,null,10,6,null,null,null,null,null,null,0,null,0,0]
[null,4,"Flyg - Interkontinentalt",null,null,null,null,null,null,null,null,null,5,2,null,null,null,null,null,null,{"$f":"M48*T48","v":0},null,{"$f":"N48*V48","v":0},{"$f":"U48+W48","v":0}]
[null,5,"Flyg - Årskort/Travelpass/Dest.kort - utfärdande",null,null,null,null,null,null,null,null,null,null,null,null,null,null,null,null,null,0,null,null,0]
[null,6,"Flyg - Årskort/Travelpass/Dest.kort - utfärdande inkl bokning",null,null,null,null,null,null,null,null,null,null,null,null,null,null,null,null,null,0,null,null,0]
[null,7,"Tåg - Inrikes",null,null,null,null,null,null,null,null,null,50,20,null,null,null,null,null,null,0,null,{"$f":"N51*V51","v":0},0]
[null,8,"Tåg - Utrikes",null,null,null,null,null,null,null,null,null,null,null,null,null,null,null,null,null,0,null,0,0]
[null,9,"Tåg - Årskort/Dest.kort - utfärdande",null,null,null,null,null,null,null,null,null,null,null,null,null,null,null,null,null,0,null,null,0]
[null,10,"Tåg - Årskort/Dest.kort - utfärdande inkl bokning",null,null,null,null,null,null,null,null,null,null,null,null,null,null,null,null,null,0,null,null,0]
[null,11,"Hotell \nbokat i ordinarie bokningssystem ",null,null,null,null,null,null,null,null,null,100,50,null,null,null,null,null,null,0,null,0,{"$f":"U55+W55","v":0}]
[null,12,"Hotell \nbokat utanför ordinarie bokningssystem\n",null,null,null,null,null,null,null,null,null,25,null,null,null,null,null,null,null,{"$f":"M56*T56","v":0},null,{"$f":"N56*V56","v":0},{"$f":"U56+W56","v":0}]
[null,13,"E-vouchers",null,null,null,null,null,null,null,null,null,100,null,null,null,null,null,null,null,{"$f":"M57*T57","v":0},null,{"$f":"N57*V57","v":0},{"$f":"U57+W57","v":0}]
[null,14,"Hyrbil",null,null,null,null,null,null,null,null,null,30,null,null,null,null,null,null,null,0,null,0,0]
[null,15,"Anslutning till/från tåg/flyg",null,null,null,null,null,null,null,null,null,160,null,null,null,null,null,null,null,{"$f":"M59*T59","v":0},null,{"$f":"N59*V59","v":0},{"$f":"U59+W59","v":0}]
[null,16,"Båt",null,null,null,null,null,null,null,null,null,null,null,null,null,null,null,null,null,0,null,null,0]
[null,17,"Buss",null,null,null,null,null,null,null,null,null,null,null,null,null,null,null,null,null,0,null,null,0]
[null,18,"24-timmarsservice",null,null,null,null,null,null,null,null,null,50,null,null,null,null,null,null,null,0,null,null,0]
[null,19,"Visum",null,null,null,null,null,null,null,null,null,10,null,null,null,null,null,null,null,0,null,null,0]
[null,20,"Ombokning",null,null,null,null,null,null,null,null,null,40,null,null,null,null,null,null,null,0,null,0,0]
[null,21,"Omskrivning",null,null,null,null,null,null,null,null,null,10,null,null,null,null,null,null,null,0,null,null,0]
[null,22,"Kreditering",null,null,null,null,null,null,null,null,null,15,null,null,null,null,null,null,null,0,null,0,0]
[null,"23.","Gruppresor",null,null,null,null,null,null,null,null,null,8,null,null,null,null,null,null,null,{"$f":"M67*T67","v":0},null,null,{"$f":"U67+W67","v":0}]
[null,"24.","Konferenser",null,null,null,null,null,null,null,null,null,4,null,null,null,null,null,null,null,0,null,null,0]
[null,"25.","Projektledare inom konferensbokning",null,null,null,null,null,null,null,null,null,null,null,null,null,null,null,null,null,0,null,{"$f":"N69*V69","v":0},0]
[null,"26.","Konsulttjänster",null,null,null,null,null,null,null,null,null,null,null,null,null,null,null,null,null,0,null,{"$f":"N70*V70","v":0},0]
[]
[null,null,null,null,null,null,null,null,null,null,null,null,null,null,null,null,null,null,null,null,null,null,"Totalt pris för avropade produkter: ",{"$f":"SUM(X45:X70)","v":0}]
[]
[null,"Föregående års statistik."]
[null,"Föregående års statistik bifogas. Se Vägledning för efterfrågade poster"]
[]
[null,"Tilläggstjänster, nedan följer förslag på vanliga tilläggstjänster, övriga tilläggstjänster kan specificeras på pos 29-30 nedan.",null,null,null,null,null,null,null,null,null,null,null,"Antal",null,null,null,null,null,null,null,"Kostnad per enhet",null,"Totalsumma"]
[null,"27.","Tillägg 1.","Implementering av självbokningssystem, fast pris (ange 1 som antal om tjänsten ingår i avropet)",null,null,null,null,null,null,null,null,null,1,null,"Total kostnad för implementering",null,null,null,null,null,null,null,{"$f":"V78*N78","v":0}]
[null,"28.","Tillägg 2.","Årlig underhåll för självbokning (ange 1 som antal om tjänsten ingår i avropet)",null,null,null,null,null,null,null,null,null,1,null,"Total årlig kostnad för underhåll",null,null,null,null,null,null,null,{"$f":"V79*N79","v":0}]
[null,"29.","Tillägg 3.","Upplägg av profiler (totalt förväntat antal profiler).",null,null,null,null,null,null,null,null,null,30,null,"Arvode anges/profil",null,null,null,null,null,null,null,0]
[null,"30.","Tillägg 4.","Statistikrapporter (antal rapporter /år)",null,null,null,null,null,null,null,null,null,2,null,"Arvode/rapport",null,null,null,null,null,null,null,0]
[null,31,"Tillägg 5.","Informationsmöten",null,null,null,null,null,null,null,null,null,1,null,"Arvode/möte",null,null,null,null,null,null,null,0]
[null,"32.","Tillägg 6.","Implementering av övriga system/projektledning (ange 1 som antal om tjänsten ingår i avropet)\n(Beskriv system/projektledning samt specificera omfattning eller antal timmar)",null,null,null,null,null,null,null,null,null,null,null,"Total kostnad för implementering och projektledning",null,null,null,null,null,null,null,0]
[null,"33.","Tillägg 7.","Avstämningsmöten/kundansvarig",null,null,null,null,null,null,null,null,null,2,null,"Arvode/möte",null,null,null,null,null,null,null,0]
[null,"34.","Tillägg 8.","Stöd inom Travel Management och/eller resesamordning (ange förväntat antal timmar)",null,null,null,null,null,null,null,null,null,null,null,"Arvode/timme",null,null,null,null,null,null,null,0]
[null,"35.","Tillägg 9.","Utbildning per timme (självbokning)",null,null,null,null,null,null,null,null,null,null,null,"Arvode/timme",null,null,null,null,null,null,null,0]
[null,null,null,null,null,null,null,null,null,null,null,null,"Antal","Enhet"]
[null,"36.","Tillägg 10.",null,null,null,null,null,null,null,null,null,null,"välj enhet….",null,"Arvode per vald enhet för den specificerade tjänsten",null,null,null,null,null,null,null,{"$f":"V88*M88","v":0}]
[null,"37.","Tillägg 11.",null,null,null,null,null,null,null,null,null,null,"välj enhet….",null,"Arvode per vald enhet för den specificerade tjänsten",null,null,null,null,null,null,null,{"$f":"V89*M89","v":0}]
[]
[null,null,null,null,null,null,null,null,null,null,null,null,null,null,null,null,null,null,null,null,null,null,"Totalt pris för tilläggstjänster: ",{"$f":"SUM(X78:Y89)","v":0}]
[]
[null,null,null,null,null,null,null,null,null,null,null,null,null,null,null,null,null,null,null,null,null,null,"Totalt pris (utvärderas): ",{"$f":"X72+X91","v":0}]
[]
[null,"Steg 3 - Grund för tilldelning av kontrakt",null,null,null,null,null,null,null,null,null,null,null,null,null,null,null,null,null,null,null,"OBS! Ej detsamma som kontraktssumma"]
[]
[]
[]
[null,"Tilldelning av kontrakt sker utifrån:"]
[null,"Lägsta pris (endast ska-krav och pris)"]
[1]
[]
[]
["Ut1"]
[]
[null,"Steg 4 - Övriga uppgifter"]
[null,"Leverans/implementering"]
[null,"Ange när leverans/implementering ska vara klart"]
[null,"(Branschpraxis för implementering av ny kund är ungf 3 månader)"]
[]
[]
[]
[null,"Fakturaadress (om annan än ovan)"]
[null,"Ange ev fakturaadress/erna"]
[]
[]
[]
[]
[null,"Övrig information"]
[null,"Ange övriga specifika förutsättningar (tex ev budgetrestriktioner), förhållanden eller önskemål som kan vara viktiga för leverantören och som inte framgår på annan plats i dokumentet."]
[]
[]
[]
[]
[]
[]
[]
[]
[]
[]
[]
[null,"Bilagor från avropande organisation (kontraktshandlingar framgår av flik 3)",null,null,null,null,null,null,null,null,null,null,null,null,null,"Bilagor från leverantören"]
[null,"Specificera ev. bilagor som medföljer denna avropsförfrågan",null,null,null,null,null,null,null,null,null,null,null,null,null,"Specificera ev. bilagor som medföljer detta avropssvar"]
[]
[]
[]
[]
[]
[null,null,null,null,null,null,null,null,null,null,null,null,null,null,null,"Leverantören har lämnat begärda prisuppgifter som gäller för offererade produkter/tjänster enligt ställda krav samt accepterar i övrigt kraven i avropsförfrågan och är införstådd med att samtliga lämnade uppgifter i avropssvaret är bindande\n"]
[]
[null,"OBS! Spara inte blanketten i PDF-format. Då kan inte leverantörerna fylla i den. Lås blanketten med \"låsknappen\" nedan innan ni skickar blanketten till leverantörerna.",null,null,null,null,null,null,null,null,null,null,null,null,null,{"$f":"\"Leverantören intygar att avropssvaret är giltigt minst den tid som avropande organisation angett ovan. \"&CHAR(10)&\"(\"&TEXT(D34,\"ÅÅÅÅ-MM-DD\")&\")\"","v":"Leverantören intygar att avropssvaret är giltigt minst den tid som avropande organisation angett ovan. \n(2021-04-30)"}]
[null,"Låsning av avropsblanketten",null,null,null,null,null,null,null,null,null,null,null,null,null,"Ort, datum"]
[null,"Detta görs genom att klicka på knappen nedanför samt ange ett lösenord. Om det visat sig att man glömt fylla i någon uppgift så kan det vara bra att kunna låsa upp blanketten. Klicka då på samma knapp. Observera att lösenordet inte kan bestå av enbart siffror.",null,null,null,null,null,null,null,null,null,null,null,null,null,null,null,null,null,null,null,null,null,null,null,null,null,null,null,null,null,null,null,{"$f":"IF(P143=0,TRUE,FALSE)","v":true}]
[]
[null,null,null,null,null,null,null,null,null,null,null,null,null,null,null,"Namn, befattning (behörig företrädare för leverantören)"]
[]
[null,null,null,null,null,null,null,null,null,null,null,null,null,null,null,null,null,null,null,null,null,null,null,null,null,null,null,null,null,null,null,null,null,{"$f":"IF(P146=0,TRUE,FALSE)","v":true}]
[]
[null,null,null,null,null,null,null,null,null,null,null,null,null,null,null,null,null,null,null,{"$f":"IF(LarmStatus,\"Minst ett av de obligatoriska kraven är inte ifyllda eller besvarde med Nej\",\"\")","v":"Minst ett av de obligatoriska kraven är inte ifyllda eller besvarde med Nej"}]

{"sheet":"3 Avtalstecknande","index":2,"n_rows":37,"n_cols":4,"rows_kept":37,"cut":false,"hidden":false,"merged":[[41,1,41,3],[22,1,22,3],[37,1,37,3],[17,1,17,3],[18,1,19,3],[5,1,5,3],[38,1,38,3],[39,1,39,3],[40,1,40,3],[7,1,7,3],[9,1,9,3],[11,1,11,3],[14,1,14,3],[15,1,15,3]]}
[null,null,null,{"$f":"\"Avrop nr: \"&'2 Specifikation'!E15","v":"Avrop nr: xxxx"}]
[]
[]
[]
[null,"Kontrakt"]
[null,{"$f":"\"Detta kontrakt reglerar avrop från ramavtalsområde \"&'1 Försättssida'!A14&\", \"&'1 Försättssida'!A16","v":"Detta kontrakt reglerar avrop från ramavtalsområde Resebyråtjänster, 23.3-07347-2019"}]
[null,"Kontraktets omfattning"]
[null,"Leveransens omfattning och villkor framgår av Kontraktet med tillhörande bilagor samt Ramavtalet. Om handlingarna innehåller motstridiga uppgifter ska handlingarna gälla i nedan nämnd ordning om inte omständigheterna uppenbarligen föranleder annat."]
[null,"1. Skriftliga ändringar och tillägg till Kontrakt"]
[null,"2. Kontrakt med bilagor, inkl. Allmänna villkor"]
[null,"3. Eventuellt kompletterande Avropsförfrågan"]
[null,"4. Avropsförfrågan med bilagor "]
[null,"5. Eventuella tillåtna kompletteringar av Avropssvar"]
[null,"6. Avropssvar med bilagor"]
[]
[null,"Innehåller leverantörens avropssvar uppgifter som inte efterfrågats i avropsblanketten är dessa uppgifter giltiga endast om en skriftlig överenskommelse träffas särskilt angående detta. Hänvisning till leverantörens egna allmänna villkor eller motsvarande är endast giltiga om en särskild överenskommelse avseende detta tecknas."]
[]
[null,"Särskilda kontraktsvillkor, säkerhetsskyddsavtal etc. (alternativt enl separat bilaga) "]
[]
[]
[]
[null,"Underskrift"]
[null,"Underskriften avser ett kontraktstecknande. Efter undertecknande av bägge parter utgör denna blankett tillsammans med ramavtalets villkor enligt ovan ett kontrakt mellan parterna.\n\nDetta kontrakt har upprättats i två exemplar varav parterna tagit var sitt."]
[]
[null,"Avropande organisation",null,"Leverantör"]
[null,{"$f":"'2 Specifikation'!B9","v":"Fiktivmyndigheten"},null,{"$f":"'2 Specifikation'!P9","v":0}]
[null,"Org.nr.",null,"Org.nr."]
[null,{"$f":"'2 Specifikation'!H9","v":0},null,{"$f":"'2 Specifikation'!V9","v":0}]
[]
[null,"Ort, datum",null,"Ort, datum"]
[]
[]
[null,"Namn, befattning \n(behörig företrädare för avropande organisation)",null,"Namn, befattning \n(behörig företrädare för leverantören)"]
[]
[]
[]
[null,"Eventuella bilagor till kontraktet"]

{"sheet":"Admin","index":3,"n_rows":67,"n_cols":21,"rows_kept":67,"cut":false,"hidden":true,"merged":[]}
[null,null,null,null,null,null,null,null,null,"ResVarTja",null,null,null,null,null,"Information/kommunikation","Kompetens ","Statistik och uppföljning ","Service","Bokning","Pris"]
[null,null,null,{"$f":"C5","v":"Delområde 1"},{"$f":"C6","v":"Delområde 2"},{"$f":"C7","v":"Delområde 3"},{"$f":"C8","v":"Delområde 4"},{"$f":"C9","v":"Delområde 5"},{"$f":"C10","v":"Delområde 6"},{"$f":"USRDelområde","v":"Delområde 1"},null,"Tbl krav",null,null,null,"TblKravInfo","TblKravKomp","TblKravStat","TblKravServ","TblKravBokn","TblKravPris"]
[null,null,"TblDelområde","Välj tjänst",{"$f":"$D$3","v":"Välj tjänst"},{"$f":"$D$3","v":"Välj tjänst"},{"$f":"$D$3","v":"Välj tjänst"},{"$f":"$D$3","v":"Välj tjänst"},{"$f":"$D$3","v":"Välj tjänst"},{"$f":"INDEX(D3:I3,MATCH(J$2,D$2:I$2,0))","v":"Välj tjänst"},null,"Välj krav",null,null,null,"Spårningssystem","Resekonsultens kompetens och erfarenhet","Webbaserat statistikverktyg","Tredjepartssytem","Leverans av färdhandlingar","Pris"]
[null,null,"Välj delområde","Flyg - ",null,null,null,null,null,{"$f":"INDEX(D4:I4,MATCH(J$2,D$2:I$2,0))","v":"Flyg - "},null,"Information/kommunikation",null,null,null,"Reseportal",null,"Statistik","Konsulttjänster","Följesedel"]
[null,null,"Delområde 1","Flyg - Inrikes",null,null,null,null,null,"Flyg - Inrikes",null,"Komepetens",null,null,null,"Singel-sign-on",null,"Uppföljningsmöten","Klimatkompensation"]
[null,null,"Delområde 2","Flyg - Utrikes",null,null,null,null,null,"Flyg - Utrikes",null,"Säkerhet",null,null,null,"24-timmarsservice"]
[null,null,"Delområde 3","Flyg - Årskort/Travelpass/Dest.kort - utfärdande",null,null,null,null,null,"Flyg - Årskort/Travelpass/Dest.kort - utfärdande",null,"Statistik och uppföljning",null,null,null,"Pass och visum"]
[null,null,"Delområde 4","Flyg - Årskort/Travelpass/Dest.kort - utfärdande inkl bokning",null,null,null,null,null,"Flyg - Årskort/Travelpass/Dest.kort - utfärdande inkl bokning",null,"Service",null,null,null,"Specifikt telefonnummer"]
[null,null,"Delområde 5","Tåg",null,null,null,null,null,"Tåg",null,"Bokning",null,null,null,"Applikation till smartphone"]
[null,null,"Delområde 6","Tåg - Inrikes",null,null,null,null,null,"Tåg - Inrikes",null,"e-Handel"]
[null,null,null,"Tåg - Utrikes",null,null,null,null,null,"Tåg - Utrikes",null,"Pris"]
[null,null,null,"Tåg - Årskort/Dest.kort - utfärdande",null,null,null,null,null,"Tåg - Årskort/Dest.kort - utfärdande",null,"Viten"]
[null,null,null,"Tåg - Årskort/Dest.kort - utfärdande inkl bokning",null,null,null,null,null,"Tåg - Årskort/Dest.kort - utfärdande inkl bokning"]
[null,null,null,"Hotell bokat i GDS",null,null,null,null,null,"Hotell bokat i GDS"]
[null,null,null,"Hotell bokat utanför GDS",null,null,null,null,null,"Hotell bokat utanför GDS"]
[null,null,null,"Hyrbil",null,null,null,null,null,"Hyrbil"]
[null,null,null,"Anslutning till/från tåg/flyg",null,null,null,null,null,"Anslutning till/från tåg/flyg"]
[null,null,null,"Båt",null,null,null,null,null,"Båt"]
[null,null,null,"Buss",null,null,null,null,null,"Buss"]
[null,null,null,"24-timmarsservice",null,null,null,null,null,"24-timmarsservice"]
[null,null,null,"Visum",null,null,null,null,null,"Visum"]
[null,null,null,"Ombokning",null,null,null,null,null,"Ombokning"]
[null,null,null,"Omskrivning",null,null,null,null,null,"Omskrivning"]
[null,null,null,"Kreditering",null,null,null,null,null,"Kreditering"]
[]
[null,null,null,"Optioner",null,null,null,null,null,"ResOpt"]
[null,null,null,"Välj tilläggstjänst",{"$f":"$D$27","v":"Välj tilläggstjänst"},{"$f":"$D$27","v":"Välj tilläggstjänst"},{"$f":"$D$27","v":"Välj tilläggstjänst"},{"$f":"$D$27","v":"Välj tilläggstjänst"},{"$f":"$D$27","v":"Välj tilläggstjänst"},{"$f":"INDEX(D27:I27,MATCH(J$2,D$2:I$2,0))","v":"Välj tilläggstjänst"}]
[null,null,null,"Implementering av självbokningssystem, fast pris",null,null,null,null,null,{"$f":"INDEX(D28:I28,MATCH(J$2,D$2:I$2,0))","v":"Implementering av självbokningssystem, fast pris"}]
[null,null,null,"Årlig underhåll/licenskostnad för självbokning",null,null,null,null,null,{"$f":"INDEX(D29:I29,MATCH(J$2,D$2:I$2,0))","v":"Årlig underhåll/licenskostnad för självbokning"}]
[null,null,null,"Ev. hanteringskostnad för upplägg av profiler",null,null,null,null,null,"Ev. hanteringskostnad för upplägg av profiler"]
[null,null,null,"Statistikkostnad, per rapport/årlig avgift",null,null,null,null,null,"Statistikkostnad, per rapport/årlig avgift"]
[null,null,null,"Informationsmöten",null,null,null,null,null,"Informationsmöten"]
[null,null,null,"Implementering av övriga system/projektledning",null,null,null,null,null,"Implementering av övriga system/projektledning"]
[null,null,null,"Avstämningsmöten/kundansvarig",null,null,null,null,null,"Avstämningsmöten/kundansvarig"]
[null,null,null,"Stöd inom Travel Management och/eller resesamordning",null,null,null,null,null,"Stöd inom Travel Management och/eller resesamordning"]
[null,null,null,"Utbildning per timme (självbokning)",null,null,null,null,null,"Utbildning per timme (självbokning)"]
[null,null,null,"Övriga tilläggstjänster (specificera)",null,null,null,null,null,{"$f":"INDEX(D37:I37,MATCH(J$2,D$2:I$2,0))","v":"Övriga tilläggstjänster (specificera)"}]
[]
[null,null,null,null,null,null,null,null,null,"Region"]
[null,null,null,"TblGrundTilldeln",null,null,null,"TblEnhet",null,"Multiregionalt"]
[null,null,null,"Välj grund för tilldelning…..",null,null,null,"Styck",null,"Blekinge län"]
[null,null,null,"Alt. 1. Lägsta pris (endast ska-krav och pris)",null,null,null,"Timmar",null,"Dalarnas län"]
[null,null,null,"Alt. 2. Ekonomiskt mest fördelaktiga (priset i relation till bör-krav)",null,null,null,"Månader",null,"Gotlands län"]
[null,null,null,null,null,null,null,"År",null,"Gävleborgs län"]
[null,null,null,"TblUtVrd",null,null,null,"Bilaga",null,"Hallands län"]
[null,null,null,"Välj utvärdering…..",null,null,null,null,null,"Jämtlands län"]
[null,null,null,"Alt. 1. Relativ viktning - summan av viktade poäng för pris och uppfyllda bör-krav",null,null,null,null,null,"Jönköpings län"]
[null,null,null,"Alt. 2. Mervärdesmodell - prisavdrag för uppfyllda bör-krav",null,null,null,null,null,"Kalmars län"]
[null,null,null,"Alt. 3. Annan utvärderingsmodell",null,null,null,null,null,"Kronobergs län"]
[null,null,null,null,null,null,null,null,null,"Norrbottens län"]
[null,null,null,null,null,null,null,null,null,"Skånes län"]
[null,null,null,null,null,null,null,null,null,"Stockholms län"]
[null,null,null,null,null,null,null,null,null,"Södermanlands län"]
[null,null,null,null,null,null,null,null,null,"Uppsala län"]
[null,null,null,null,null,null,null,null,null,"Värmlands län"]
[null,null,null,null,null,null,null,null,null,"Västerbottens län"]
[null,null,null,null,null,null,null,null,null,"Västernorrlands län"]
[null,null,null,null,null,null,null,null,null,"Västmanlands län"]
[null,null,null,null,null,null,null,null,null,"Västra Götalands län"]
[null,null,null,null,null,null,null,null,null,"Örebro län"]
[null,null,null,null,null,null,null,null,null,"Östergötlands lön"]
[]
[null,null,"TblLeverantörer"]
[null,null,"Juridiskt Namn","Förvaltningens avtalsnummer ","Organisations-nummer","Adress","Postnummer","Postadress","Telefon Växel","Telefon kundtjänst","Hemsida","Kontaktperson ","Telefon",null,"E-post kontaktperson","Befattning Kontaktperson","Fax","E-post Gruppbrevlåda"]
[]
[null,null,{"$f":"\"Välj \"&C64","v":"Välj Juridiskt Namn"},{"$f":"D64","v":"Förvaltningens avtalsnummer "},"Organisations-nummer","Adress","Postnummer","Postadress","Telefon Växel","Telefon kundtjänst","Hemsida","Kontaktperson ","Telefon",null,"E-post kontaktperson","Befattning Kontaktperson","Fax","E-post Gruppbrevlåda"]
[null,null,"Välj Juridiskt Namn 2","Förvaltningens avtalsnummer  2","Organisations-nummer 2","Adress 2","Postnummer 2","Postadress 2","Telefon Växel 2","Telefon kundtjänst 2","Hemsida 2","Kontaktperson  2","Telefon 2",null,"E-post kontaktperson 2","Befattning Kontaktperson 2","Fax 2","E-post Gruppbrevlåda 2"]

{"sheet":"SysAdmin","index":4,"n_rows":18,"n_cols":3,"rows_kept":18,"cut":false,"hidden":true,"merged":[]}
["LockStatus",false]
["UKey","Förvaltning21"]
["pkey","Förvaltning21"]
["Wkey","Förvaltning21","RGB"]
["YColor"," ","255, 255, 153"]
[null,null,"204, 255, 255"]
[null,null,"150, 150, 150"]
[null,null,"204, 255, 204"]
[null,null,"250, 191, 143"]
[]
[null,2,{"$f":"INDEX(C12:C14,B11)","v":"Avroppsblanketten är nu upplåst, klicka här för att låsa avropsblanketten."}]
[null,null,"Adminläge! Klicka här för att låsa vita celler."]
[null,null,"Avroppsblanketten är nu upplåst, klicka här för att låsa avropsblanketten."]
[null,null,"Avroppsblanketten är nu låst, klicka här för att låsa upp avropsblanketten."]
[]
[null,null,"Grund för tilldelning av kontrakt & Utvärderingsmodell"]
[null,null,{"$f":"VALUE(IF(ISNUMBER(SEARCH(\"2\",DpDwnTDV))=TRUE,\"2\",\"1\"))","v":1}]
[null,null,{"$f":"\"Ut\"&IF(ISNUMBER(SEARCH(\"1\",DpDwnUtvddrop))=TRUE,\"1\",IF(ISNUMBER(SEARCH(\"2\",DpDwnUtvddrop))=TRUE,\"2\",IF(ISNUMBER(SEARCH(\"3\",DpDwnUtvddrop))=TRUE,\"3\")))","v":"UtFALSE"}]